fUSD/lending_fUSD_20240620
["ID","MTS","AMOUNT","RATE_DAILY","PERIOD"]
[329969591,1718881840085,-6663.31,0.00013698,2]
[329969593,1718881840094,-16402.95,0.00013698,2]
[329969595,1718881840107,-995.88,0.00013698,2]
[329969597,1718881840116,-500.0,0.00013698,2]
[329969599,1718881840125,-1157.05,0.00013698,2]
[329969601,1718881840135,-500.0,0.00013698,2]
[329969603,1718881840144,-950.01,0.00013698,2]
[329969605,1718881840153,-2737.36,0.00013698,2]
[329969607,1718881840163,-500.0,0.00013698,2]
[329969609,1718881840173,-607.72,0.00013698,2]
[329969611,1718881840182,-895.46,0.00013698,2]
[329969613,1718881840191,-759.33,0.00013698,2]
[329969615,1718881840200,-580.59,0.00013698,2]
[329969617,1718881840210,-500.0,0.00013698,2]
[329969619,1718881840219,-12975.45506014,0.00013698,2]
[329969620,1718881840282,-1987.44088235,0.00013698,2]
[329969621,1718881840293,-5051.990667,0.00013698,2]
[329969622,1718881840304,-1335.16355775,0.00013698,2]
[329969623,1718881840315,-858.74623956,0.00013698,2]
[329969624,1718881840327,-227.3135932,0.00013698,2]
[329969625,1718881840336,-500.0,0.00013698,2]
[329969626,1718881840345,-5588.77,0.00013698,2]
[329969627,1718881840359,-641.09,0.00013698,2]
[329969628,1718881840369,-1434.0,0.00013698,2]
[329969629,1718881840378,-5977.7,0.00013698,2]
[329969630,1718881840387,-500.0,0.00013698,2]
[329969631,1718881840397,-500.0,0.00013698,2]
[329969632,1718881840406,-1654.28,0.00013698,2]
[329969633,1718881840415,-1940.62,0.00013698,2]
[329969634,1718881840427,-500.0,0.00013698,2]
[329969635,1718881840440,-500.0,0.00013698,2]
[329969636,1718881840450,-1779.18,0.00013698,2]
[329969637,1718881840460,-500.0,0.00013698,2]
[329969638,1718881840471,-225.59120966,0.00013698,2]
[329969639,1718881840481,-500.0,0.00013698,2]
[329969640,1718881840491,-1278.36,0.00013698,2]
[329969641,1718881840501,-500.0,0.00013698,2]
[329969642,1718881840511,-707.54,0.00013698,2]
[329969643,1718881840521,-2641.58,0.00013698,2]
[329969644,1718881840532,-765.03,0.00013698,2]
[329969645,1718881840543,-6405.67,0.00013698,2]
[329969646,1718881840552,-500.0,0.00013698,2]
[329969647,1718881840562,-1276.15,0.00013698,2]
[329969648,1718881840572,-500.0,0.00013698,2]
[329969649,1718881840582,-500.0,0.00013698,2]
[329969650,1718881840592,-532.12,0.00013698,2]
[329969651,1718881840606,-9837.54,0.00013698,2]
[329969652,1718881840615,-1319.54,0.00013698,2]
[329969653,1718881840625,-862.91,0.00013698,2]
[329969654,1718881840635,-695.54,0.00013698,2]
[329969655,1718881840645,-937.04,0.00013698,2]
[329969656,1718881840654,-1391.58,0.00013698,2]
[329969657,1718881840664,-639.97,0.00013698,2]
[329969658,1718881840674,-1219.25,0.00013698,2]
[329969659,1718881840684,-500.0,0.00013698,2]
[329969660,1718881840693,-625.62,0.00013698,2]
[329969661,1718881840703,-959.01,0.00013698,2]
[329969662,1718881840713,-610.11,0.00013698,2]
[329969663,1718881840723,-768.71,0.00013698,2]
[329969664,1718881840733,-291.77062476,0.00013698,2]
[329969665,1718881840893,-803.59937524,0.00013698,2]
[329969666,1718881840903,-1137.28,0.00013698,2]
[329969667,1718881840913,-500.0,0.00013698,2]
[329969668,1718881840922,-634.27,0.00013698,2]
[329969669,1718881840931,-2472.83,0.00013698,2]
[329969670,1718881840941,-500.0,0.00013698,2]
[329969671,1718881840950,-715.1,0.00013698,2]
[329969672,1718881840960,-2211.06,0.00013698,2]
[329969673,1718881840970,-3604.66,0.00013698,2]
[329969674,1718881840979,-500.0,0.00013698,2]
[329969675,1718881840989,-500.0,0.00013698,2]
[329969676,1718881840999,-500.0,0.00013698,2]
[329969677,1718881841008,-3111.42,0.00013698,2]
[329969678,1718881841019,-4566.67,0.00013698,2]
[329969679,1718881841029,-2574.44,0.00013698,2]
[329969680,1718881841039,-500.0,0.00013698,2]
[329969681,1718881841048,-579.59,0.00013698,2]
[329969682,1718881841057,-500.0,0.00013698,2]
[329969683,1718881841067,-1681.69,0.00013698,2]
[329969684,1718881841076,-2181.43,0.00013698,2]
[329969685,1718881841085,-1427.62,0.00013698,2]
[329969686,1718881841095,-500.0,0.00013698,2]
[329969687,1718881841108,-500.0,0.00013698,2]
[329969688,1718881841117,-2365.96,0.00013698,2]
[329969689,1718881841126,-2973.13796878,0.00013698,2]
[329969690,1718881843810,-2203.4,0.00013698,2]
[329969696,1718881843822,-1544.23867723,0.00013698,2]
[329969764,1718881844173,-500.0,0.00013698,2]
[329969766,1718881844184,-298.72,0.00013698,2]
[329969768,1718881844196,-2854.34748204,0.00013698,2]
[329969770,1718881844207,-2978.01587195,0.00013698,2]
[329969772,1718881844216,-564.85,0.00013698,2]
[329969773,1718881844226,-1158.29,0.00013698,2]
[329969775,1718881844235,-2428.36,0.00013698,2]
[329969777,1718881844244,-500.0,0.00013698,2]
[329969779,1718881844255,-500.0,0.00013698,2]
[329969781,1718881844265,-500.0,0.00013698,2]
[329969782,1718881844275,-500.0,0.00013698,2]
[329969784,1718881844285,-1505.02,0.00013698,2]
[329969786,1718881844294,-1070.89,0.00013698,2]
[329969788,1718881844304,-1426.07,0.00013698,2]
[329969790,1718881844313,-500.0,0.00013698,2]
[329969792,1718881844322,-3515.36,0.00013698,2]
[329969793,1718881844331,-956.07,0.00013698,2]
[329969795,1718881844340,-2875.88,0.00013698,2]
[329969797,1718881844351,-500.0,0.00013698,2]
[329969799,1718881844361,-500.0,0.00013698,2]
[329969800,1718881844370,-500.0,0.00013698,2]
[329969801,1718881844379,-1131.9,0.00013698,2]
[329969802,1718881844388,-500.0,0.00013698,2]
[329969803,1718881844397,-500.0,0.00013698,2]
[329969804,1718881844406,-7330.78,0.00013698,2]
[329969805,1718881844415,-2760.38,0.00013698,2]
[329969806,1718881844425,-500.0,0.00013698,2]
[329969807,1718881844438,-500.0,0.00013698,2]
[329969808,1718881844448,-898.82,0.00013698,2]
[329969809,1718881844457,-9762.98,0.00013698,2]
[329969810,1718881844467,-500.0,0.00013698,2]
[329969811,1718881844477,-1409.52,0.00013698,2]
[329969812,1718881844487,-576.74,0.00013698,2]
[329969813,1718881844497,-500.0,0.00013698,2]
[329969814,1718881844509,-2363.79,0.00013698,2]
[329969815,1718881844519,-1854.5,0.00013698,2]
[329969816,1718881844529,-1491.09,0.00013698,2]
[329969817,1718881844538,-4537.56,0.00013698,2]
[329969818,1718881844548,-500.0,0.00013698,2]
[329969819,1718881844558,-2678.09,0.00013698,2]
[329969821,1718881844568,-500.0,0.00013698,2]
[329969823,1718881844578,-6431.42,0.00013698,2]
[329969825,1718881844588,-500.0,0.00013698,2]
[329969827,1718881844597,-1991.33,0.00013698,2]
[329969828,1718881844611,-500.0,0.00013698,2]
[329969829,1718881844620,-1749.05,0.00013698,2]
[329969830,1718881844629,-692.28,0.00013698,2]
[329969831,1718881844638,-1914.22,0.00013698,2]
[329969832,1718881844647,-3329.66,0.00013698,2]
[329969833,1718881844656,-500.0,0.00013698,2]
[329969834,1718881844664,-1576.79,0.00013698,2]
[329969835,1718881844673,-500.0,0.00013698,2]
[329969836,1718881844683,-2358.75,0.00013698,2]
[329969837,1718881844692,-500.0,0.00013698,2]
[329969838,1718881844702,-2242.89,0.00013698,2]
[329969839,1718881844712,-871.84,0.00013698,2]
[329969840,1718881844722,-500.0,0.00013698,2]
[329969841,1718881844731,-1211.3,0.00013698,2]
[329969842,1718881844752,-500.0,0.00013698,2]
[329969843,1718881844763,-1494.45,0.00013698,2]
[329969844,1718881844774,-1669.38,0.00013698,2]
[329969845,1718881844784,-1767.74,0.00013698,2]
[329969846,1718881844794,-2614.53,0.00013698,2]
[329969847,1718881844805,-500.0,0.00013698,2]
[329969848,1718881844815,-549.6,0.00013698,2]
[329969849,1718881844826,-500.0,0.00013698,2]
[329969850,1718881844837,-3448.66,0.00013698,2]
[329969851,1718881844847,-1208.2,0.00013698,2]
[329969852,1718881844861,-1386.21,0.00013698,2]
[329969853,1718881844871,-500.0,0.00013698,2]
[329969854,1718881844882,-500.0,0.00013698,2]
[329969855,1718881844892,-500.0,0.00013698,2]
[329969856,1718881844902,-736.51,0.00013698,2]
[329969857,1718881844913,-2949.14,0.00013698,2]
[329969858,1718881844923,-574.73,0.00013698,2]
[329969859,1718881844933,-735.31,0.00013698,2]
[329969860,1718881844944,-1652.76,0.00013698,2]
[329969861,1718881844954,-2449.74,0.00013698,2]
[329969862,1718881844965,-500.0,0.00013698,2]
[329969863,1718881844975,-629.64244469,0.00013698,2]
[329969864,1718881844985,-595.16,0.00013698,2]
[329969865,1718881844995,-500.0,0.00013698,2]
[329969866,1718881845006,-500.0,0.00013698,2]
[329969867,1718881845016,-1016.3,0.00013698,2]
[329969868,1718881845028,-500.0,0.00013698,2]
[329969869,1718881845038,-2521.39,0.00013698,2]
[329969870,1718881845048,-1237.21,0.00013698,2]
[329969871,1718881845058,-4039.05,0.00013698,2]
[329969872,1718881845072,-2369.43,0.00013698,2]
[329969873,1718881845082,-519.99,0.00013698,2]
[329969874,1718881845093,-500.0,0.00013698,2]
[329969875,1718881845103,-239.01,0.00013699,2]
[329969876,1718881845113,-272.78,0.00013699,2]
[329969877,1718881845123,-2623.96,0.00013699,2]
[329969878,1718881845133,-1000.0,0.000137,5]
[329969879,1718881845144,-1088.34751873,0.0001372,2]
[329969880,1718881845154,-725.15226105,0.00013784,2]
[329969881,1718881845164,-486.06,0.00013789,2]
[329969882,1718881845174,-1116.464023,0.0001379,2]
[329969883,1718881845185,-1116.46402291,0.0001379,2]
[329969884,1718881845195,-499.99,0.0001379,2]
[329969885,1718881845206,-910.15678085,0.00013799,2]
[329969886,1718881845216,-910.15678077,0.00013799,2]
[329969887,1718881845226,-1200.0,0.000138,5]
[329969888,1718881845236,-910.15678077,0.0001381,2]
[329969889,1718881845246,-1116.46402291,0.0001381,2]
[329969890,1718881845258,-306.82,0.0001381,2]
[329969891,1718881845267,-500.0,0.00013884,2]
[329969892,1718881845278,-200.0,0.00013888,2]
[329969893,1718881845289,-1000.0,0.00013888,2]
[329969894,1718881845300,-200.0,0.00013888,2]
[329969895,1718881845312,-500.0,0.00013893,2]
[329969896,1718881845323,-166.33848877,0.000139,2]
[329969897,1718881845332,-7931.6872489,0.000139,2]
[329969898,1718881845343,-200.0,0.000139,5]
[329969899,1718881845354,-10983.2004721,0.000139,2]
[329969900,1718881845364,-178.02469854,0.000139,2]
[329969901,1718881845375,-1238.81595212,0.000139,2]
[329969902,1718881845384,-500.0,0.00013902,2]
[329969903,1718881845394,-160.60339165,0.00013924,2]
[329969904,1718881845405,-910.15678077,0.00013965,2]
[329969905,1718881845415,-1116.46402291,0.00013965,2]
[329969906,1718881845425,-725.15226105,0.0001397,2]
[329969907,1718881845436,-500.0,0.00013972,2]
[329969908,1718881845450,-500.0,0.00013972,2]
[329969909,1718881845460,-500.0,0.00013972,2]
[329969910,1718881845470,-500.0,0.00013972,2]
[329969911,1718881845480,-500.0,0.00013972,2]
[329969912,1718881845490,-371.85738382,0.00013972,2]
[329969913,1718881845500,-500.0,0.00013972,2]
[329969914,1718881845510,-500.0,0.00013972,2]
[329969915,1718881845520,-740.83,0.00013972,2]
[329969916,1718881845530,-500.0,0.00013972,2]
[329969917,1718881845540,-500.0,0.00013972,2]
[329969919,1718881845549,-500.0,0.00013972,2]
[329969920,1718881845558,-500.0,0.00013972,2]
[329969921,1718881845568,-542.86,0.00013972,2]
[329969923,1718881845577,-500.0,0.00013972,2]
[329969925,1718881845588,-500.0,0.00013972,2]
[329969926,1718881845598,-224.3604954,0.00013972,2]
[329969927,1718881845609,-500.0,0.00013972,2]
[329969928,1718881845620,-500.0,0.00013972,2]
[329969929,1718881845629,-500.0,0.00013972,2]
[329969930,1718881845639,-500.0,0.00013972,2]
[329969931,1718881845648,-358.23279778,0.00013972,2]
[329969932,1718881845658,-500.0,0.00013972,2]
[329969933,1718881845668,-500.0,0.00013972,2]
[329969934,1718881845678,-500.0,0.00013972,2]
[329969935,1718881845687,-500.0,0.00013972,2]
[329969936,1718881845697,-500.0,0.00013972,2]
[329969937,1718881845707,-500.0,0.00013972,2]
[329969938,1718881845716,-500.0,0.00013972,2]
[329969939,1718881845726,-500.0,0.00013972,2]
[329969940,1718881845735,-410.39739391,0.00013972,2]
[329969941,1718881845745,-500.0,0.00013972,2]
[329969942,1718881845755,-500.0,0.00013972,2]
[329969943,1718881845764,-500.0,0.00013972,2]
[329969944,1718881845775,-500.0,0.00013972,2]
[329969945,1718881845784,-500.0,0.00013972,2]
[329969946,1718881845794,-819.29,0.00013972,2]
[329969947,1718881845803,-500.0,0.00013972,2]
[329969950,1718881845817,-565.55,0.00013972,2]
[329969951,1718881845827,-500.0,0.00013972,2]
[329969952,1718881845837,-386.51801381,0.00013972,2]
[329969953,1718881845847,-500.0,0.00013972,2]
[329969954,1718881845859,-500.0,0.00013972,2]
[329969955,1718881845870,-500.0,0.00013972,2]
[329969956,1718881845880,-545.01,0.00013972,2]
[329969957,1718881845891,-565.29265775,0.00013972,2]
[329969958,1718881845900,-500.0,0.00013972,2]
[329969959,1718881845910,-294.04734558,0.00013972,2]
[329969960,1718881845920,-450.40655926,0.00013972,2]
[329969961,1718881845930,-500.0,0.00013972,2]
[329969962,1718881845941,-500.0,0.00013972,2]
[329969963,1718881845951,-500.0,0.00013972,2]
[329969964,1718881845961,-500.0,0.00013972,2]
[329969965,1718881845971,-500.0,0.00013972,2]
[329969966,1718881845981,-500.0,0.00013972,2]
[329969967,1718881845992,-500.0,0.00013972,2]
[329969968,1718881846002,-500.0,0.00013972,2]
[329969969,1718881846012,-500.0,0.00013972,2]
[329969970,1718881846022,-500.0,0.00013972,2]
[329969971,1718881846032,-500.0,0.00013972,2]
[329969972,1718881846042,-500.0,0.00013972,2]
[329969973,1718881846052,-500.0,0.00013972,2]
[329969974,1718881846062,-500.0,0.00013972,2]
[329969975,1718881846072,-107.37453265,0.00013972,2]
[329969976,1718881846091,-392.62546735,0.00013972,2]
[329969977,1718881846101,-500.0,0.00013972,2]
[329969978,1718881846114,-374.91083032,0.00013972,2]
[329969979,1718881846126,-125.08916968,0.00013972,2]
[329969980,1718881846136,-500.0,0.00013972,2]
[329969981,1718881846146,-500.0,0.00013972,2]
[329969982,1718881846156,-560.8,0.00013972,2]
[329969983,1718881846166,-500.0,0.00013972,2]
[329969999,1718881846577,-461.54693321,0.00013972,2]
[329970004,1718881846627,-38.45306679,0.00013972,2]
[329970006,1718881846637,-500.0,0.00013972,2]
[329970008,1718881846646,-500.0,0.00013972,2]
[329970010,1718881846656,-500.0,0.00013972,2]
[329970011,1718881846666,-525.57,0.00013972,2]
[329970013,1718881846676,-500.0,0.00013972,2]
[329970015,1718881846686,-500.0,0.00013972,2]
[329970017,1718881846696,-500.0,0.00013972,2]
[329970019,1718881846705,-631.85,0.00013972,2]
[329970021,1718881846714,-500.0,0.00013972,2]
[329970023,1718881846724,-500.0,0.00013972,2]
[329970025,1718881846733,-500.0,0.00013972,2]
[329970026,1718881846742,-500.0,0.00013972,2]
[329970027,1718881846752,-500.0,0.00013972,2]
[329970028,1718881846762,-500.0,0.00013972,2]
[329970029,1718881846771,-500.0,0.00013972,2]
[329970030,1718881846781,-341.97832066,0.00013972,2]
[329970031,1718881846790,-500.0,0.00013972,2]
[329970032,1718881846800,-500.0,0.00013972,2]
[329970033,1718881846810,-500.0,0.00013972,2]
[329970034,1718881846819,-500.0,0.00013972,2]
[329970035,1718881846829,-500.0,0.00013972,2]
[329970036,1718881846839,-500.0,0.00013972,2]
[329970037,1718881846849,-500.0,0.00013972,2]
[329970038,1718881846860,-547.32,0.00013972,2]
[329970039,1718881846869,-500.0,0.00013972,2]
[329970040,1718881846879,-500.0,0.00013972,2]
[329970041,1718881846889,-500.0,0.00013972,2]
[329970042,1718881846898,-500.0,0.00013972,2]
[329970043,1718881846908,-500.0,0.00013972,2]
[329970044,1718881846918,-500.0,0.00013972,2]
[329970045,1718881846927,-500.0,0.00013972,2]
[329970046,1718881846936,-500.0,0.00013972,2]
[329970047,1718881846946,-578.4,0.00013972,2]
[329970048,1718881846956,-500.0,0.00013972,2]
[329970049,1718881846965,-500.0,0.00013972,2]
[329970050,1718881846975,-500.0,0.00013972,2]
[329970051,1718881846984,-500.0,0.00013972,2]
[329970052,1718881846994,-519.79,0.00013972,2]
[329970053,1718881847005,-150.0,0.00013972,2]
[329970054,1718881847014,-500.0,0.00013972,2]
[329970055,1718881847024,-500.0,0.00013972,2]
[329970056,1718881847034,-500.0,0.00013972,2]
[329970057,1718881847043,-500.0,0.00013972,2]
[329970058,1718881847053,-500.0,0.00013972,2]
[329970059,1718881847063,-500.0,0.00013972,2]
[329970060,1718881847073,-500.0,0.00013972,2]
[329970061,1718881847083,-479.80128535,0.00013972,2]
[329970062,1718881847092,-500.0,0.00013972,2]
[329970063,1718881847102,-500.0,0.00013972,2]
[329970064,1718881847113,-328.43884105,0.00013972,2]
[329970065,1718881847122,-500.0,0.00013972,2]
[329970066,1718881847131,-500.0,0.00013972,2]
[329970067,1718881847141,-500.0,0.00013972,2]
[329970068,1718881847150,-500.0,0.00013972,2]
[329970069,1718881847159,-500.0,0.00013972,2]
[329970070,1718881847169,-500.0,0.00013972,2]
[329970071,1718881847180,-500.0,0.00013972,2]
[329970072,1718881847190,-500.0,0.00013972,2]
[329970073,1718881847201,-500.0,0.00013972,2]
[329970074,1718881847211,-219.19147692,0.00013972,2]
[329970075,1718881847221,-500.0,0.00013972,2]
[329970076,1718881847231,-500.0,0.00013972,2]
[329970077,1718881847242,-603.07,0.00013972,2]
[329970078,1718881847251,-500.0,0.00013972,2]
[329970079,1718881847261,-500.0,0.00013972,2]
[329970080,1718881847271,-397.38558577,0.00013972,2]
[329970081,1718881847281,-500.0,0.00013972,2]
[329970082,1718881847291,-500.0,0.00013972,2]
[329970083,1718881847300,-500.0,0.00013972,2]
[329970084,1718881847310,-373.81634837,0.00013972,2]
[329970085,1718881847319,-500.0,0.00013972,2]
[329970086,1718881847329,-500.0,0.00013972,2]
[329970087,1718881847339,-567.84,0.00013972,2]
[329970088,1718881847348,-500.0,0.00013972,2]
[329970089,1718881847359,-500.0,0.00013972,2]
[329970090,1718881847369,-500.0,0.00013972,2]
[329970091,1718881847379,-519.88,0.00013972,2]
[329970092,1718881847388,-500.0,0.00013972,2]
[329970093,1718881847398,-604.68,0.00013972,2]
[329970094,1718881847407,-500.0,0.00013972,2]
[329970095,1718881847419,-500.0,0.00013972,2]
[329970096,1718881847431,-500.0,0.00013972,2]
[329970097,1718881847444,-1064.35,0.00013972,2]
[329970098,1718881847455,-500.0,0.00013972,2]
[329970099,1718881847464,-577.21,0.00013972,2]
[329970100,1718881847475,-881.89,0.00013972,2]
[329970101,1718881847485,-500.0,0.00013972,2]
[329970102,1718881847494,-500.0,0.00013972,2]
[329970103,1718881847504,-500.0,0.00013972,2]
[329970104,1718881847514,-652.74,0.00013972,2]
[329970105,1718881847525,-656.83,0.00013972,2]
[329970106,1718881847536,-419.72962055,0.00013972,2]
[329970107,1718881847546,-500.0,0.00013972,2]
[329970108,1718881847556,-578.8644336,0.00013972,2]
[329970109,1718881847566,-1812.98,0.00013972,2]
[329970110,1718881847575,-500.0,0.00013972,2]
[329970111,1718881847585,-500.0,0.00013972,2]
[329970112,1718881847598,-725.49,0.00013972,2]
[329970113,1718881847609,-500.0,0.00013972,2]
[329970114,1718881847619,-500.0,0.00013972,2]
[329970115,1718881847629,-500.0,0.00013972,2]
[329970116,1718881847638,-500.0,0.00013972,2]
[329970117,1718881847648,-500.0,0.00013972,2]
[329970118,1718881847657,-500.0,0.00013972,2]
[329970119,1718881847667,-1046.93,0.00013972,2]
[329970120,1718881847677,-568.83,0.00013972,2]
[329970121,1718881847686,-729.33,0.00013972,2]
[329970122,1718881847696,-500.0,0.00013972,2]
[329970123,1718881847707,-1711.24,0.00013972,2]
[329970124,1718881847716,-2538.55,0.00013972,2]
[329970125,1718881847726,-500.0,0.00013972,2]
[329970126,1718881847736,-500.0,0.00013972,2]
[329970127,1718881847745,-500.0,0.00013972,2]
[329970128,1718881847755,-500.0,0.00013972,2]
[329970129,1718881847765,-3342.57,0.00013972,2]
[329970130,1718881847774,-1124.23,0.00013972,2]
[329970131,1718881847784,-500.0,0.00013972,2]
[329970132,1718881847793,-954.53,0.00013972,2]
[329970133,1718881847803,-598.33,0.00013972,2]
[329970134,1718881847812,-541.3,0.00013972,2]
[329970135,1718881847821,-500.0,0.00013972,2]
[329970136,1718881847830,-500.0,0.00013972,2]
[329970137,1718881847839,-1391.87,0.00013972,2]
[329970138,1718881847849,-6116.71,0.00013972,2]
[329970139,1718881847860,-7017.38,0.00013972,2]
[329970140,1718881847870,-1247.35,0.00013972,2]
[329970141,1718881847880,-500.0,0.00013972,2]
[329970142,1718881847889,-500.0,0.00013972,2]
[329970143,1718881847900,-6663.31,0.00013972,2]
[329970144,1718881847910,-16402.95,0.00013972,2]
[329970145,1718881847919,-995.88,0.00013972,2]
[329970146,1718881847929,-500.0,0.00013972,2]
[329970147,1718881847938,-1157.05,0.00013972,2]
[329970148,1718881847948,-500.0,0.00013972,2]
[329970149,1718881847957,-950.01,0.00013972,2]
[329970150,1718881847966,-2737.36,0.00013972,2]
[329970151,1718881847975,-500.0,0.00013972,2]
[329970152,1718881847985,-607.72,0.00013972,2]
[329970153,1718881847994,-759.33,0.00013972,2]
[329970154,1718881848003,-580.59,0.00013972,2]
[329970155,1718881848012,-895.46,0.00013972,2]
[329970156,1718881848022,-562.76081725,0.00013972,2]
[329970157,1718881848031,-22436.11,0.00013972,2]
[329970158,1718881848041,-500.0,0.00013972,2]
[329970159,1718881848050,-5588.77,0.00013972,2]
[329970160,1718881848059,-641.09,0.00013972,2]
[329970161,1718881848074,-1434.0,0.00013972,2]
[329970162,1718881848084,-5977.7,0.00013972,2]
[329970163,1718881848093,-500.0,0.00013972,2]
[329970164,1718881848103,-500.0,0.00013972,2]
[329970165,1718881848114,-1654.28,0.00013972,2]
[329970166,1718881848124,-1940.62,0.00013972,2]
[329970167,1718881848135,-500.0,0.00013972,2]
[329970168,1718881848145,-500.0,0.00013972,2]
[329970169,1718881848155,-1779.18,0.00013972,2]
[329970170,1718881848164,-500.0,0.00013972,2]
[329970171,1718881848173,-500.0,0.00013972,2]
[329970172,1718881848183,-1278.36,0.00013972,2]
[329970173,1718881848192,-500.0,0.00013972,2]
[329970174,1718881848202,-707.54,0.00013972,2]
[329970175,1718881848215,-2641.58,0.00013972,2]
[329970176,1718881848224,-765.03,0.00013972,2]
[329970177,1718881848234,-6405.67,0.00013972,2]
[329970178,1718881848243,-500.0,0.00013972,2]
[329970179,1718881848253,-1276.15,0.00013972,2]
[329970180,1718881848263,-500.0,0.00013972,2]
[329970181,1718881848273,-500.0,0.00013972,2]
[329970182,1718881848283,-532.12,0.00013972,2]
[329970183,1718881848293,-9837.54,0.00013972,2]
[329970184,1718881848303,-1319.54,0.00013972,2]
[329970185,1718881848313,-862.91,0.00013972,2]
[329970186,1718881848323,-695.54,0.00013972,2]
[329970187,1718881848333,-937.04,0.00013972,2]
[329970188,1718881848343,-1391.58,0.00013972,2]
[329970189,1718881848352,-639.97,0.00013972,2]
[329970190,1718881848365,-1219.25,0.00013972,2]
[329970191,1718881848374,-500.0,0.00013972,2]
[329970192,1718881848383,-625.62,0.00013972,2]
[329970193,1718881848392,-959.01,0.00013972,2]
[329970194,1718881848401,-610.11,0.00013972,2]
[329970195,1718881848410,-768.71,0.00013972,2]
[329970196,1718881848419,-1095.37,0.00013972,2]
[329970197,1718881848430,-1137.28,0.00013972,2]
[329970198,1718881848443,-500.0,0.00013972,2]
[329970199,1718881848452,-634.27,0.00013972,2]
[329970200,1718881848462,-2472.83,0.00013972,2]
[329970201,1718881848471,-500.0,0.00013972,2]
[329970202,1718881848483,-715.1,0.00013972,2]
[329970203,1718881848493,-2211.06,0.00013972,2]
[329970204,1718881848502,-3604.66,0.00013972,2]
[329970205,1718881848512,-500.0,0.00013972,2]
[329970206,1718881848521,-500.0,0.00013972,2]
[329970207,1718881848531,-500.0,0.00013972,2]
[329970208,1718881848540,-3111.42,0.00013972,2]
[329970209,1718881848549,-4566.67,0.00013972,2]
[329970210,1718881848559,-2574.44,0.00013972,2]
[329970211,1718881848568,-500.0,0.00013972,2]
[329970212,1718881848577,-579.59,0.00013972,2]
[329970213,1718881848587,-500.0,0.00013972,2]
[329970214,1718881848596,-1681.69,0.00013972,2]
[329970215,1718881848607,-2181.43,0.00013972,2]
[329970216,1718881848616,-1427.62,0.00013972,2]
[329970217,1718881848626,-500.0,0.00013972,2]
[329970218,1718881848635,-500.0,0.00013972,2]
[329970219,1718881848644,-2365.96,0.00013972,2]
[329970220,1718881848653,-13351.86,0.00013972,2]
[329970221,1718881848662,-564.85,0.00013972,2]
[329970222,1718881848672,-1158.29,0.00013972,2]
[329970223,1718881848681,-2428.36,0.00013972,2]
[329970224,1718881848691,-500.0,0.00013972,2]
[329970225,1718881848700,-379.86582112,0.00013972,2]
[329970226,1718881848709,-500.0,0.00013972,2]
[329970227,1718881848718,-500.0,0.00013972,2]
[329970228,1718881848728,-1505.02,0.00013972,2]
[329970229,1718881848737,-1070.89,0.00013972,2]
[329970230,1718881848747,-1426.07,0.00013972,2]